Cogmind - Beta 10.2 @@@ ROGUE MODE // 2021.08.12 @ 21:02:14 Player: Gilgameshx13 Result: Self-destructed Performance ------------- Evolutions (1) 500 Regions Visited (2) 400 Robots Destroyed (11) 55 Value Destroyed (311) 311 Prototype IDs (0) 0 Alien Tech Used (0) 0 Bonus (200) 200 TOTAL SCORE: 1466 Bonus ------- Pacifist 200 Cogmind --------- Core Integrity 275/400 Matter 174/300 Energy 28/100 System Corruption 0% Temperature Cool (160) Movement Treading (145) Location -9/Materials Parts ------- > --- POWER (1) -------- (None) > --- PROPULSION (2) --- Advanced Treads Advanced Treads > --- UTILITY (2) ------ Medium Storage Unit Large Storage Unit > --- WEAPON (4) ------- Ion Cannon Ion Cannon Ion Cannon > --- INVENTORY (14) --- Light Ion Engine Advanced Treads Advanced Treads Heat Sink Large Storage Unit Hardened Medium Armor Plating Hardened Medium Armor Plating Hardened Medium Armor Plating Hardened Medium Armor Plating Small Laser Beam Rifle Peak State ------------ > --- POWER ------------ Ion Engine > --- PROPULSION ------- Advanced Treads Advanced Treads > --- UTILITY ---------- Medium Storage Unit Large Storage Unit > --- WEAPON ----------- Ion Cannon Ion Cannon Ion Cannon Heavy Assault Rifle > --- INVENTORY -------- Light Ion Engine Advanced Treads Advanced Treads Heat Sink Large Storage Unit Hardened Medium Armor Plating Hardened Medium Armor Plating Hardened Medium Armor Plating Hardened Medium Armor Plating Small Laser Beam Rifle Ion Cannon [Rating: 22] Favorites ----------- Power Ion Engine Engine Ion Engine Propulsion Aluminum Leg Treads Advanced Treads Leg Aluminum Leg Utility Medium Storage Unit Storage Medium Storage Unit Weapon EM Pulse Gun Energy Gun EM Pulse Gun Energy Cannon Ion Cannon Ballistic Gun Assault Rifle Build | -11 -10 -9 ------- Run | Scr Mat Mat Slots Evolved 2 | . . 2 Power . | . . . Propulsion . | . . . Utility . | . . . Weapon 2 | . . 2 Parts Attached 16 | 6 2 8 Power 1 | 1 . . Engine 1 | 1 . . Core . | . . . Reactor . | . . . Propulsion 4 | 2 . 2 Treads 2 | . . 2 Leg 2 | 2 . . Wheel . | . . . Hover . | . . . Flight . | . . . Utility 3 | 1 2 . Device . | . . . Storage 3 | 1 2 . Processor . | . . . Hackware . | . . . Protection . | . . . Artifact . | . . . Weapon 8 | 2 . 6 Energy Gun 2 | 1 . 1 Energy Cannon 4 | . . 4 Ballistic Gun 2 | 1 . 1 Ballistic Cannon . | . . . Launcher . | . . . Special Weapon . | . . . Impact Weapon . | . . . Slashing Weapon . | . . . Piercing Weapon . | . . . Special Melee Weapon . | . . . Unidentified Prototypes . | . . . Parts Lost 5 | . . 5 Power 1 | . . 1 Propulsion . | . . . Utility . | . . . Weapon 4 | . . 4 Highest Loss Streak 5 | . . 5 Average Slot Usage (%) 95 | . 97 94 Engine 11 | . 14 10 Treads 7 | . . 13 Leg 16 | . 28 8 Storage 23 | . 25 22 Energy Gun 14 | . 14 14 Energy Cannon 5 | . . 10 Ballistic Gun 14 | . 14 15 Naked Turns . | . . . Heaviest Build 50 | 13 33 50 Greatest Support 44 | 20 20 44 Greatest Overweight (x) 4 | 4 1 1 Average Overweight (x) . | . . . Largest Inventory Capacity 14 | 6 14 14 Average Capacity 11 | 5 11 14 Most Carried 14 | 4 5 14 Average Carried 6 | 1 3 10 Final Capacity 14 | 6 14 14 Final Carried 11 | 2 5 11 Class Distribution -------------------- 55% | Mutant 44% | Gunner Dominant Class ---------------- Mutant | -10/Materials Gunner | -9/Materials Resources | -11 -10 -9 ----------- Run | Scr Mat Mat Matter Collected 290 | 190 . 100 Remotely . | . . . Salvage Created 347 | . . 347 Parts 20 | . . 20 Haulers Intercepted . | . . . Recyclers Shooed . | . . . Parts Field Recycled . | . . . Retrieved Matter . | . . . Parts Self-Destructed . | . . . Prevented . | . . . Kills | -11 -10 -9 ------- Run | Scr Mat Mat Combat Hostiles Destroyed 5 | . . 5 Guns 2 | . . 2 AOE 3 | . . 3 Classes Destroyed 5 | . . 5 Worker 2 | . . 2 Recycler 1 | . . 1 Watcher 3 | . . 3 Grunt 3 | . . 3 Sentry 2 | . . 2 Best Kill Streak 7 | . . 7 Combat Bots Only 4 | . . 4 Max Kills in Single Turn 5 | . . 5 Gunslinging . | . . . Exploded 3 | . . 3 Melee . | . . . Uniques/NPCs Destroyed . | . . . Combat | -11 -10 -9 -------- Run | Scr Mat Mat Damage Taken 1019 | . 207 812 Core 167 | . 42 125 Absorbed by Shields . | . . . Core Remaining (%) 91 | 100 83 . Volleys Fired 16 | . . 16 Largest 4 | . . 4 Hottest 180 | . . 180 Shots Fired 61 | . . 61 Gun 42 | . . 42 Cannon 19 | . . 19 Launcher . | . . . Special . | . . . Kinetic 27 | . . 27 Thermal 20 | . . 20 Explosive . | . . . Electromagnetic 14 | . . 14 Robot Hit Streak 8 | . . 8 Robot Miss Streak 3 | . . 3 Penetration Max . | . . . Secondary Targets . | . . . Shots Hit Robots 34 | . . 34 Core Hits 16 | . . 16 Critical Hits . | . . . Critical Kills . | . . . Critical Parts Destroyed . | . . . Melee Attacks . | . . . Impact . | . . . Slashing . | . . . Piercing . | . . . Sneak Attacks . | . . . Combat Hostiles . | . . . Follow-up Attacks . | . . . Damage Inflicted 882 | . . 882 Guns 188 | . . 188 Cannons 275 | . . 275 Explosions 419 | . . 419 Melee . | . . . Ramming . | . . . Kinetic 63 | . . 63 Thermal 705 | . . 705 Explosive . | . . . Electromagnetic 114 | . . 114 Impact . | . . . Slashing . | . . . Piercing . | . . . Highest Corruption . | . . . Average Corruption . | . . . Corruption Purged . | . . . Overload Shots . | . . . Overflow Damage . | . . . Projectiles . | . . . Explosions . | . . . Melee . | . . . Knockbacks . | . . . Impact . | . . . Kinetic . | . . . Secondary . | . . . Self-Inflicted Damage . | . . . Shots . | . . . Rammed . | . . . Targets Rammed . | . . . Kicked . | . . . Crushed . | . . . Highest Temperature 509 | . . 509 Average Temperature 187 | . . 187 Received Heat Transfer 483 | . 114 369 Effects 8 | . . 8 Shutdowns 2 | . . 2 Energy Bleed 1 | . . 1 Damage (major) 5 | . . 5 Siege Activations . | . . . Robots Corrupted . | . . . Combat Hostiles . | . . . Parts Fried . | . . . Impact Corruptions . | . . . Robots Melted . | . . . Combat Hostiles . | . . . Parts Melted . | . . . Heat Transferred 769 | . . 769 Parts Sabotaged . | . . . Parts Stolen . | . . . Parts Stripped . | . . . Power Chain Reactions . | . . . Missiles Intercepted . | . . . Alert | -11 -10 -9 ------- Run | Scr Mat Mat Peak Influence 281 | . 15 281 Initial 5 | . . 5 Average 47 | . . 96 Maximum Alert Level 1 | . . 1 Low Security (%) 88 | 100 100 76 Level 1 11 | . . 23 Level 2 . | . . . Level 3 . | . . . Level 4 . | . . . Level 5 . | . . . High Security . | . . . Max Security . | . . . Squads Dispatched 2 | . 1 1 Investigation 1 | . 1 . Extermination . | . . . Reinforcement 1 | . . 1 Assault . | . . . Garrison . | . . . Intercept . | . . . Construction Impeded . | . . . Haulers Reinforced . | . . . Stealth | -11 -10 -9 --------- Run | Scr Mat Mat Distress Signals 4 | . 1 3 Communications Jammed . | . . . Distress Signals . | . . . Times Spotted 19 | . 6 13 Peak Tracking Total 8 | . 8 6 Tactical Retreats . | . . . Traps | -11 -10 -9 ------- Run | Scr Mat Mat Traps Triggered 1 | . 1 . Indirectly . | . . . Trap Hack Attempts . | . . . Triggered . | . . . Disarmed . | . . . Reprogrammed . | . . . Reused . | . . . Traps Extracted . | . . . Installed . | . . . Triggered . | . . . Machines | -11 -10 -9 ---------- Run | Scr Mat Mat Machines Disabled 5 | . . 5 Max in Single Turn 5 | . . 5 Machines Sabotaged . | . . . Garrisons Compromised . | . . . Overloaded Fab Kills . | . . . Fab Network Shutdowns . | . . . Hacking | -11 -10 -9 --------- Run | Scr Mat Mat Machines Accessed . | . . . Terminals . | . . . Fabricators . | . . . Repair Stations . | . . . Recycling Units . | . . . Scanalyzers . | . . . Garrison Access . | . . . Total Hacks . | . . . Successful . | . . . Failed . | . . . Catastrophic . | . . . Database Lockouts . | . . . Manual . | . . . Terminals . | . . . Fabricators . | . . . Repair Stations . | . . . Recycling Units . | . . . Scanalyzers . | . . . Garrison Access . | . . . Terminal Hacks . | . . . Fabricator Hacks . | . . . Repair Station Hacks . | . . . Recycling Unit Hacks . | . . . Scanalyzer . | . . . Garrison Access Hacks . | . . . Unauthorized Hacks . | . . . Terminals . | . . . Fabricators . | . . . Repair Stations . | . . . Recycling Units . | . . . Scanalyzers . | . . . Garrison Access . | . . . Data Cores Recovered . | . . . Used . | . . . Hacking Detections . | . . . Full Trace Events . | . . . Feedback Events . | . . . Feedback Blocked . | . . . Robot Schematics Acquired . | . . . Robots Built . | . . . Matter . | . . . Time . | . . . Total Robot Build Rating . | . . . Part Schematics Acquired . | . . . Parts Built . | . . . Matter . | . . . Time . | . . . Total Part Build Rating . | . . . Parts Repaired . | . . . Time . | . . . Parts Recycled . | . . . Recycled Matter . | . . . Retrieved Matter . | . . . Retrieved Components . | . . . Parts Scanalyzed . | . . . Part Schematics Acquired . | . . . Parts Damaged . | . . . Bothacking | -11 -10 -9 ------------ Run | Scr Mat Mat Used RIF Installer . | . . . Robots Hacked . | . . . Non-combat . | . . . Combat . | . . . Robot Hacks Applied . | . . . Relay Couplers Released . | . . . Robots Rewired . | . . . Allies Hacked . | . . . Hacks Repelled . | . . . Allies | -11 -10 -9 -------- Run | Scr Mat Mat Total Allies . | . . . Largest Group . | . . . Highest-Rated Group . | . . . Highest-Rated Ally . | . . . Total Orders . | . . . Ally Attacks . | . . . Total Damage . | . . . Kills . | . . . Allies Corrupted . | . . . Allies Melted . | . . . Intel | -11 -10 -9 ------- Run | Scr Mat Mat Robot Analysis Total . | . . . Derelict Logs Recovered . | . . . Drone Launches . | . . . Drone Recoveries . | . . . Exploration | -11 -10 -9 ------------- Run | Scr Mat Mat Turns Passed 540 | 86 187 267 Spaces Moved 311 | 61 126 124 Core 20 | 20 . . Treads 68 | . . 68 Legs 223 | 41 126 56 Wheels . | . . . Hover . | . . . Flight . | . . . Fastest Speed 50 | 50 120 145 Average Speed 140 | 120 144 147 Slowest Speed 250 | 250 150 165 Overloaded Moves . | . . . Propulsion Burnouts . | . . . Robots Hopped . | . . . Cave-ins Triggered . | . . . Exploration Rate (%) 14 | 4 22 17 Regions Visited 2 Branch Regions . Pre-discovered Areas . | . . . Known Exits Taken . | . . . Unknown Exits Taken 2 | 1 1 . Scrap Searched . | . . . Spaces Dug . | . . . Terrain Destroyed 9 | . . 9 Melee . | . . . Projectile 1 | . . 1 AOE 8 | . . 8 Terrain Rammed . | . . . Walls Destroyed . | . . . Machines Disabled . | . . . Actions | -11 -10 -9 --------- Run | Scr Mat Mat Total 374 | 74 131 169 Wait . | . . . Move 309 | 60 125 124 Hop . | . . . Pick Up 28 | 8 4 16 Fast Attach . | . . . Attach 12 | 6 1 5 Detach . | . . . Swap 4 | . 1 3 Drop 5 | . . 5 Fire 16 | . . 16 Melee . | . . . Ram . | . . . Kick . | . . . Crush . | . . . Escape Stasis . | . . . Rewire . | . . . Trap . | . . . Miscellaneous . | . . . Route ------- -11/Scrapyard -10/Materials -9/Materials History --------- Turn | Location | Event 22 | -11/Scrapyard | Discovered new exit (range 15) 87 | -11/Scrapyard | Entered Materials 250 | -10/Materials | Discovered new exit (range 15) 274 | -10/Materials | Entered another Materials area 274 | -9/Materials | Evolved 2 slots: Weapon x2 541 | -9/Materials | Self-destructed Last Messages --------------- K-01 Serf collects debris. U-05 Engineer lays Concrete. Acquired 20 matter. U-05 Engineer lays Concrete. K-01 Serf collects debris. U-05 Engineer lays Concrete. K-01 Serf collects debris. U-05 Engineer lays Concrete. Ion Cannon destroyed. U-05 Engineer lays Concrete. K-01 Serf collects debris. U-05 Engineer lays Concrete. K-01 Serf collects debris. U-05 Engineer lays Concrete. K-01 Serf collects debris. U-05 Engineer lays Concrete. Ion Engine destroyed. U-05 Engineer lays Concrete. Hvy. Assault Rifle destroyed. U-05 Engineer lays Concrete. Map ----- +----------------------------------------------------+ | ?????????????????????# ???????????? ????????## | | ?????????????????????# ####?????####+########## | | ????????????????##+### """####### | | ??????????????? [%= ! * !% | | ??????????????? * = % ! | | ??????????????T" ########### | | ????????????? #?????????## | | ????????????? #??????##### | | ???????????? #??????# | | ???????????? #??????# | | ???????????? #??????#! | | ??????????? #??????# ! | | ??????????? =%;"#/#######??????#= | | ?????????? ; #???????#= | | ?????????? u =%; """ "" #??????##### | | ?????????? =; """ Y" ##??????????# | | ?????????? ggY # """ "" #???????????# | | ?????????? [ g# #???????????# | | ??????????? #### # """ #???????????# | | ????????????????# # """ ! #??????????## | | ????????????????# # """ #??????????# | | ????????????????# # #??????????# | | ????????????????# g ####???###??????????# | | ????????????????# a #???????????????????# | | ????????????????# #???????????????????# | | ????????????????# #####@########??????????????## | | ????????????????# # #???????????????? | | ????????????????# ?# "" """ ! #???????????????? | | ????????????????# ??# "T """ #???????????????? | | ????????????????#???# ""^ """ #???????????????? | | ????????????????????# #???????????????? | | ????????????????????############?#???????????????? | | ?????????????????????????????????????????????????? | | ?????????????????????????????????????????????????? | | ?????????????????????????????????????????????????? | | ?????????????????????????????????????????????????? | | ?????????????????????????????????????????????????? | | ?????????????????????????????????????????????????? | | ?????????????????????????????????????????????????? | | ?????????????????????????????????????????????????? | | ?????????????????????????????????????????????????? | | ?????????????????????????????????????????????????? | | ?????????????????????????????????????????????????? | | ?????????????????????????????????????????????????? | | ?????????????????????????????????????????????????? | | ?????????????????????????????????????????????????? | | ?????????????????????????????????????????????????? | | ?????????????????????????????????????????????????? | | ?????????????????????????????????????????????????? | | ?????????????????????????????????????????????????? | +----------------------------------------------------+ Best States ------------- Heat Dissipation 28 Energy Generation 10 Energy Capacity 250 Matter Stores 245 Matter Capacity 300 Sight Range 16 Terrain Scan Density 10 Evasion (%) 50 Recoil Reduction 2 Item Schematics ----------------- None Robot Schematics ------------------ None Fabricated ------------ Nothing Alien Tech Used ----------------- None Achievements -------------- None Challenges ------------ None Game ------ Seed FluxArmorSystem Manual? 0 Play Time 00:07:03 Cumulative 14.0 hours Start 2021.08.12 @ 20:55:44 End 2021.08.12 @ 21:02:14 Sessions 1 Manual Loads 0 Difficulty Rogue Special Mode None Game No. 31 Rogue 11 Adventurer 20 Explorer 0 Win Type - Total 1 Types 1/0/0/0/0/0/0/0/0 Lore% 14 Gallery% 37 Achievement% 26 Wizard Run 0 Options --------- ASCII 0 Keyboard 0 Movement Arrows Keybinds 0 Fullscreen 1 Font 18/SmallcapsGlow Map View 76x50 Tactical HUD 0 Map Filters NONE Filters NONE Steam 1 RUN: 846e881b-7b26-423c-8ef9-b5fd5b582d94